bitfinex/quotes_BTCUSD_20260307
["timestamp","ask_amount","ask_price","bid_price","bid_amount"]
[1772861970179,0.0739843,68034.0,68017.0,0.07351103]
[1772861970433,0.00148,68033.0,68018.0,0.00148]
[1772861970811,0.03914985,68032.0,68019.0,0.07498887]
[1772861971016,0.07497444,68033.0,68019.0,0.07498887]
[1772861971214,0.07497444,68033.0,68019.0,0.07350887]
[1772861971398,0.03914985,68032.0,68020.0,0.00148]
[1772861971810,0.07497444,68033.0,68020.0,0.00148]
[1772861972212,0.07497444,68033.0,68019.0,0.07350887]
[1772861972417,0.07497444,68033.0,68020.0,0.00148]
[1772861972840,0.07497444,68033.0,68021.0,0.07350671]
[1772861973945,0.07519445,68033.0,68021.0,0.07350671]
[1772861974529,0.03914985,68032.0,68021.0,0.07350671]
[1772861974737,0.0734953,68032.0,68021.0,0.07350671]
[1772861974931,0.0734953,68032.0,68020.0,0.00148]
[1772861975139,0.0734953,68032.0,68017.0,0.07499103]
[1772861975377,0.0734953,68032.0,68017.0,0.07351103]
[1772861975553,0.0734953,68032.0,68018.0,0.00148]
[1772861975978,0.0734953,68032.0,68019.0,0.00148]
[1772861975979,0.0749753,68032.0,68019.0,0.00148]
[1772861976154,0.03914985,68031.0,68019.0,0.00148]
[1772861976360,0.0749753,68032.0,68017.0,0.07351103]
[1772861976580,0.0749753,68032.0,68019.0,0.00148]
[1772861976783,0.0749753,68032.0,68020.0,0.07350779]
[1772861976981,0.03914985,68031.0,68020.0,0.07350779]
[1772861977327,0.0749753,68032.0,68020.0,0.07350779]
[1772861980567,0.00022001,68033.0,68020.0,0.07350779]
[1772861980739,0.00148,68032.0,68020.0,0.07350779]
[1772861981294,0.00022001,68031.0,68020.0,0.07350779]
[1772861989515,0.00022001,68031.0,68020.0,0.07370779]
[1772861993301,0.07323212,68036.0,68020.0,0.07370779]
[1772861993468,0.00011549,68036.0,68023.0,0.21951097]
[1772861993671,0.00011549,68036.0,68024.0,0.29301443]
[1772861993816,0.00011549,68036.0,68025.0,0.00148]
[1772861994318,0.00011549,68036.0,68025.0,0.22099097]
[1772861995578,0.00011549,68036.0,68026.0,0.0735013]
[1772861998571,0.0141664,68044.0,68026.0,0.0745013]
[1772861998775,0.00022001,68043.0,68026.0,0.08232498]
[1772861999311,0.00022001,68043.0,68026.0,0.08132498]
[1772862000095,0.00041721,68045.0,68026.0,0.07388657]
[1772862000302,0.00041721,68045.0,68031.0,0.00713284]
[1772862000525,0.00041721,68045.0,68032.0,0.00148]
[1772862001122,0.02799646,68045.0,68032.0,0.00148]
[1772862001981,0.00970958,68044.0,68032.0,0.00248]
[1772862002187,0.03025581,68044.0,68033.0,0.07349374]
[1772862006737,0.00970958,68044.0,68033.0,0.07349374]
[1772862006916,0.00098161,68045.0,68033.0,0.07349374]
[1772862007522,0.00098161,68045.0,68034.0,0.00639993]
[1772862007721,0.00098161,68045.0,68033.0,0.07349374]
[1772862010534,0.00722001,68050.0,68033.0,0.07349374]
[1772862010535,0.005,68049.0,68033.0,0.07349374]
[1772862010899,0.00222001,68050.0,68033.0,0.0792765]
[1772862011524,0.00222001,68050.0,68033.0,0.0812765]
[1772862011785,0.00362622,68054.0,68037.0,0.00565386]
[1772862011985,0.0001262,68059.0,68040.0,0.00137378]
[1772862012254,0.0001262,68059.0,68038.0,0.00148]
[1772862012255,0.0001262,68059.0,68042.0,0.00565386]
[1772862012410,0.0001262,68059.0,68045.0,0.00137378]
[1772862012603,0.0001262,68059.0,68046.0,0.00285378]
[1772862013119,0.00497854,68065.0,68047.0,0.00137378]
[1772862013319,0.005,68062.0,68046.0,0.00148]
[1772862013458,0.02054623,68059.0,68047.0,0.00148]
[1772862013653,0.005,68056.0,68044.0,0.07348186]
[1772862013876,0.005,68054.0,68048.0,0.00148]
[1772862014077,0.02054623,68053.0,68049.0,0.00148]
[1772862014305,0.005,68050.0,68049.0,0.00148]
[1772862014516,0.02054623,68051.0,68049.0,0.00148]
[1772862014517,0.02404478,68051.0,68049.0,0.00148]
[1772862014719,0.02054623,68056.0,68049.0,0.07495646]
[1772862015079,0.00497854,68055.0,68049.0,0.07495646]
[1772862015399,0.00497854,68055.0,68049.0,0.07347646]
[1772862015614,0.00497854,68055.0,68049.0,0.05217621]
[1772862015819,0.00497854,68055.0,68049.0,0.05220213]
[1772862016021,0.00497854,68055.0,68049.0,0.04071034]
[1772862016221,0.00497854,68055.0,68048.0,0.03092888]
[1772862016650,0.00497854,68055.0,68045.0,0.00148]
[1772862019286,0.00497854,68055.0,68046.0,0.0734797]
[1772862019940,0.00519855,68055.0,68046.0,0.0734797]
[1772862020223,0.005,68054.0,68043.0,0.07348262]
[1772862021414,0.07495214,68053.0,68042.0,0.0001262]
[1772862021673,0.005,68052.0,68042.0,0.0001262]
[1772862021843,0.005,68052.0,68042.0,0.02232709]
[1772862023172,0.07495214,68053.0,68042.0,0.02232709]
[1772862024239,0.07495214,68053.0,68043.0,0.07348294]
[1772862024419,0.00022001,68055.0,68044.0,0.04214767]
[1772862024610,0.00022001,68055.0,68044.0,0.01994678]
[1772862024813,0.00022001,68055.0,68045.0,0.02220089]
[1772862026366,0.00022001,68055.0,68046.0,0.0734797]
[1772862030537,0.00022001,68062.0,68046.0,0.0734797]
[1772862030538,0.00022001,68062.0,68049.0,0.02213381]
[1772862030770,0.07368246,68062.0,68052.0,0.0197679]
[1772862030919,0.07368246,68062.0,68053.0,0.02213381]
[1772862031971,0.07368246,68062.0,68049.0,0.00159542]
[1772862032368,0.07368246,68062.0,68050.0,0.07347538]
[1772862034083,0.00148,68061.0,68053.0,0.01978075]
[1772862034261,0.0735844,68066.0,68054.0,0.02213381]
[1772862034458,0.00148,68063.0,68055.0,0.09560379]
[1772862034824,0.0735844,68066.0,68055.0,0.09560379]
[1772862035024,0.00148,68065.0,68056.0,0.02213381]
[1772862035236,0.0735844,68066.0,68056.0,0.02213381]
[1772862035413,0.00022001,68062.0,68057.0,0.01998265]
[1772862035561,0.00022001,68062.0,68058.0,0.02213381]
[1772862036397,0.00022001,68062.0,68059.0,0.07346566]
[1772862037144,0.00022001,68062.0,68059.0,0.09559947]
[1772862037685,0.00022001,68062.0,68060.0,0.02213381]
[1772862038413,0.0016062,68066.0,68061.0,0.07346351]
[1772862038614,0.0016062,68066.0,68062.0,0.02014446]
[1772862038615,0.0001262,68066.0,68062.0,0.02014446]
[1772862038874,0.0001262,68066.0,68063.0,0.0220898]
[1772862039066,0.0001262,68066.0,68063.0,0.02014446]
[1772862039270,0.0001262,68066.0,68063.0,0.0220898]
[1772862039470,0.0001262,68066.0,68061.0,0.07346351]
[1772862039757,0.0001262,68073.0,68061.0,0.07346351]
[1772862039941,0.0001262,68073.0,68063.0,0.04168556]
[1772862040088,0.07357747,68073.0,68063.0,0.04168556]
[1772862040299,0.0001262,68073.0,68063.0,0.00148]
[1772862040468,0.0001262,68073.0,68064.0,0.07346027]
[1772862040670,0.0001262,68073.0,68064.0,0.11514583]
[1772862041810,0.0001262,68073.0,68065.0,0.02014652]
[1772862041983,0.0001262,68073.0,68066.0,0.0215386]
[1772862042180,0.0001262,68073.0,68066.0,0.04168512]
[1772862042777,0.08067528,68078.0,68067.0,0.07345703]
[1772862043051,0.08067528,68078.0,68068.0,0.04168512]
[1772862043635,0.07919528,68078.0,68070.0,0.0215386]
[1772862043835,0.07919528,68078.0,68069.0,0.00148]
[1772862044200,0.07919528,68078.0,68070.0,0.04173919]
[1772862044406,0.00022001,68073.0,68070.0,0.04173919]
[1772862044602,0.07367091,68073.0,68065.0,0.07345817]
[1772862044805,0.07367091,68073.0,68066.0,0.00148]
[1772862045005,0.00022001,68073.0,68066.0,0.00148]
[1772862045410,0.07367082,68073.0,68066.0,0.00148]
[1772862045613,0.07367082,68073.0,68065.0,0.07345817]
[1772862047549,0.00575,68078.0,68065.0,0.07345817]
[1772862047868,0.07931088,68078.0,68065.0,0.07345817]
[1772862048616,0.07931088,68078.0,68066.0,0.04417245]
[1772862048859,0.07931088,68078.0,68065.0,0.07345817]
[1772862049178,0.0058654,68078.0,68065.0,0.07345817]
[1772862049339,0.07931098,68078.0,68066.0,0.02263002]
[1772862049537,0.07931098,68078.0,68068.0,0.07345595]
[1772862051850,0.0058654,68078.0,68068.0,0.09608277]
[1772862052097,0.00608541,68078.0,68069.0,0.0215386]
[1772862053841,0.00608541,68078.0,68070.0,0.07345379]
[1772862054393,0.00608541,68078.0,68070.0,0.07328381]
[1772862060264,0.00608541,68078.0,68069.0,0.07345379]
[1772862060265,0.07344624,68077.0,68069.0,0.07345379]
[1772862063381,0.07953114,68078.0,68069.0,0.07345379]
[1772862063579,0.00608541,68078.0,68069.0,0.07345379]
[1772862064086,0.00608541,68078.0,68071.0,0.07345271]
[1772862065223,0.00608541,68078.0,68071.0,0.11716952]
[1772862068613,0.00608541,68078.0,68070.0,0.07345271]
[1772862069015,0.00608541,68078.0,68071.0,0.02266056]
[1772862069217,0.00608541,68078.0,68071.0,0.043713]
[1772862069734,0.00608541,68078.0,68071.0,0.04354305]
[1772862072358,0.00608541,68078.0,68072.0,0.07345163]
[1772862073232,9.94e-05,68083.0,68072.0,0.07345163]
[1772862074033,9.94e-05,68083.0,68074.0,0.02105244]
[1772862074255,9.94e-05,68083.0,68075.0,0.0734484]
[1772862074775,9.94e-05,68083.0,68076.0,0.04364502]
[1772862075759,9.94e-05,68083.0,68075.0,0.0734484]
[1772862075961,9.94e-05,68083.0,68076.0,0.04364032]
[1772862076343,0.07491655,68086.0,68077.0,0.07327629]
[1772862076344,0.07454596,68086.0,68077.0,0.07327629]
[1772862076562,0.00022001,68083.0,68077.0,0.07327629]
[1772862080091,0.07366012,68083.0,68074.0,0.00148]
[1772862080329,0.07366012,68083.0,68074.0,0.07492892]
[1772862080804,0.00022001,68083.0,68074.0,0.11856182]
[1772862081647,0.07366055,68083.0,68074.0,0.11856182]
[1772862082863,0.07357468,68091.0,68076.0,0.07344732]
[1772862083016,0.07491304,68090.0,68077.0,0.0434593]
[1772862083352,0.07343304,68090.0,68077.0,0.0434593]
[1772862083555,0.00148,68089.0,68077.0,0.0434593]
[1772862083914,0.00148,68088.0,68077.0,0.0434593]
[1772862084143,0.00148,68088.0,68076.0,0.07344732]
[1772862084325,0.07343304,68090.0,68077.0,0.04362556]
[1772862084669,0.00148,68089.0,68075.0,0.07344797]
[1772862084961,0.07343437,68088.0,68075.0,0.07344797]
[1772862085828,0.07365438,68088.0,68075.0,0.07344797]
[1772862087453,0.00022001,68088.0,68075.0,0.07344797]
[1772862087856,0.00022001,68088.0,68075.0,0.24942663]
[1772862087857,0.07365458,68088.0,68075.0,0.24942663]
[1772862088056,0.07365458,68088.0,68078.0,0.04361839]
[1772862088256,0.00022001,68088.0,68078.0,0.04509839]
[1772862088642,0.07365446,68088.0,68078.0,0.04509839]
[1772862089255,0.07365446,68088.0,68079.0,0.07344408]
[1772862089452,0.07365446,68088.0,68078.0,0.11706291]
[1772862089651,0.07365446,68088.0,68078.0,0.07344452]
[1772862093057,0.07365446,68088.0,68076.0,0.09600485]
[1772862093058,0.00148,68087.0,68076.0,0.09600485]
[1772862093385,0.07365446,68088.0,68076.0,0.09600485]
[1772862093591,0.00148,68087.0,68076.0,0.09600485]
[1772862094257,0.00148,68087.0,68076.0,0.07344647]
[1772862094538,0.00148,68087.0,68077.0,0.0002]
[1772862095192,0.07343653,68086.0,68077.0,0.0002]
[1772862096642,0.07343653,68086.0,68077.0,3.007e-05]
[1772862099367,0.00022001,68088.0,68077.0,3.007e-05]
[1772862099657,0.00022001,68088.0,68078.0,0.02413979]
[1772862100841,0.00022001,68088.0,68080.0,0.02413979]
[1772862101037,0.00170001,68088.0,68080.0,0.02396987]
[1772862101620,0.00170001,68088.0,68081.0,0.02405115]
[1772862102270,0.00022001,68088.0,68081.0,0.02405115]
[1772862103036,0.00022001,68088.0,68082.0,0.07344085]
[1772862105265,0.00022001,68088.0,68083.0,0.02407563]
[1772862105900,0.00022001,68088.0,68083.0,0.0239057]
[1772862107305,0.00022001,68088.0,68084.0,0.09745087]
[1772862107508,0.00022001,68088.0,68084.0,0.09728095]
[1772862107890,0.00022001,68088.0,68084.0,0.07351237]
[1772862108098,0.00022001,68088.0,68085.0,0.02401218]
[1772862108833,0.00022001,68088.0,68085.0,0.02425578]
[1772862109546,0.00022001,68088.0,68085.0,0.09769274]
[1772862110187,0.07365504,68088.0,68085.0,0.0002436]
[1772862110422,0.00022001,68088.0,68085.0,0.0002436]
[1772862111650,0.00122001,68088.0,68085.0,0.0002436]
[1772862111863,0.00022001,68088.0,68085.0,0.0002436]
[1772862112096,0.00122001,68088.0,68085.0,0.0002436]
[1772862112582,0.00122001,68088.0,68085.0,0.07368112]
[1772862112963,0.00122001,68088.0,68085.0,0.09768647]
[1772862113366,0.07343045,68092.0,68086.0,0.02400194]
[1772862113687,0.00148,68090.0,68086.0,0.02383201]
[1772862113853,0.00148,68090.0,68086.0,0.02407561]
[1772862114660,0.001,68088.0,68086.0,0.02407561]
[1772862114868,0.00148,68090.0,68086.0,0.02407561]
[1772862115296,0.00248,68090.0,68086.0,0.02407561]
[1772862116105,0.00148,68090.0,68086.0,0.02407561]
[1772862116306,0.001,68088.0,68086.0,0.02407561]
[1772862117297,0.001,68088.0,68087.0,0.02393811]
[1772862117615,0.00148,68090.0,68087.0,0.02376821]
[1772862117978,0.00148,68090.0,68087.0,0.02401181]
[1772862119785,0.07343168,68091.0,68090.0,0.49852]
[1772862120003,0.07343168,68091.0,68090.0,0.4985604]
[1772862121446,0.07443168,68091.0,68090.0,0.4985604]
[1772862121651,0.07443168,68091.0,68090.0,0.30750272]
[1772862122158,0.07443168,68091.0,68090.0,0.30291327]
[1772862124719,0.07343168,68091.0,68090.0,0.30291327]
[1772862125041,0.07443168,68091.0,68090.0,0.30291327]
[1772862128667,0.07443168,68091.0,68090.0,0.30311327]
[1772862129872,0.03133814,68091.0,68090.0,0.32710162]
[1772862130112,0.001,68091.0,68090.0,0.30311327]
[1772862130542,0.07443168,68091.0,68090.0,0.30311327]
[1772862133427,0.00575,68105.0,68091.0,0.02403839]
[1772862133540,0.07552907,68100.0,68091.0,0.02386851]
[1772862133975,0.07552907,68100.0,68091.0,0.02398791]
[1772862136118,0.07342174,68100.0,68093.0,0.02398615]
[1772862136706,0.07490056,68101.0,68093.0,0.02398615]
[1772862136906,0.00022001,68100.0,68093.0,0.02409348]
[1772862137107,0.00022001,68100.0,68093.0,0.02421288]
[1772862139214,0.07364203,68100.0,68094.0,0.0734279]
[1772862139554,0.07364203,68100.0,68094.0,0.09751229]
[1772862140144,0.07364203,68100.0,68094.0,0.09763169]
[1772862140509,0.07364195,68100.0,68094.0,0.0001194]
[1772862140756,0.07364195,68100.0,68093.0,0.00010733]
[1772862141352,0.09535855,68100.0,68093.0,0.00010733]
[1772862145162,0.09535855,68100.0,68093.0,0.00030733]
[1772862147260,0.07364195,68100.0,68093.0,0.00030733]
[1772862149972,0.02165513,68099.0,68090.0,0.13106825]
[1772862150133,0.07342359,68098.0,68090.0,0.13106825]
[1772862153099,0.07342359,68098.0,68093.0,0.0002]
[1772862153403,0.09507872,68098.0,68093.0,0.0002]
[1772862154667,0.07342359,68098.0,68093.0,0.0002]
[1772862154884,0.07442359,68098.0,68093.0,0.0002]
[1772862156927,0.07442359,68098.0,68090.0,0.13106825]
[1772862156928,0.09603872,68098.0,68090.0,0.13106825]
[1772862158110,0.09503872,68098.0,68090.0,0.13106825]
[1772862160569,0.07342359,68098.0,68090.0,0.13106825]
[1772862160764,0.07342359,68098.0,68091.0,0.02788965]
[1772862161169,0.0736436,68098.0,68091.0,0.02788965]
[1772862164713,0.02101677,68097.0,68088.0,0.0001242]
[1772862165044,0.02101677,68097.0,68086.0,0.0002]
[1772862165584,0.02101677,68095.0,68083.0,0.02807327]
[1772862165780,0.00148,68094.0,68083.0,0.07363972]
[1772862165981,0.00148,68094.0,68082.0,0.0001242]
[1772862165982,0.02101677,68093.0,68082.0,0.0001242]
[1772862166193,0.02101677,68093.0,68078.0,0.0002]
[1772862167599,0.02101677,68091.0,68078.0,0.0002]
[1772862169629,0.09444899,68090.0,68078.0,0.0002]
[1772862172495,0.09444899,68090.0,68078.0,0.02856226]
[1772862180830,0.04705606,68090.0,68078.0,0.0002]
[1772862181030,0.02168794,68089.0,68075.0,3.007e-05]
[1772862181235,0.02168794,68087.0,68075.0,3.007e-05]
[1772862181461,0.00148,68088.0,68075.0,0.07347833]
[1772862181759,0.00148,68088.0,68076.0,0.0283611]
[1772862182450,0.07355426,68092.0,68076.0,0.0283611]
[1772862182608,0.00148,68087.0,68076.0,0.0283611]
[1772862182803,0.07343653,68086.0,68078.0,0.0283611]
[1772862183428,0.07343653,68086.0,68078.0,0.0285611]
[1772862183632,0.00148,68085.0,68078.0,0.0285611]
[1772862184473,0.07343653,68086.0,68078.0,0.0285611]
[1772862184658,0.00148,68085.0,68078.0,0.0285611]
[1772862184840,0.07343869,68084.0,68078.0,0.0285611]
[1772862186738,0.07343869,68084.0,68078.0,0.1020062]
[1772862186937,0.07343869,68084.0,68078.0,0.0002]
[1772862187151,0.07343869,68084.0,68079.0,0.02837398]
[1772862193370,0.07343869,68084.0,68078.0,0.0002]
[1772862195656,0.07343869,68084.0,68075.0,3.007e-05]
[1772862195862,0.02033323,68083.0,68075.0,3.007e-05]
[1772862196291,0.07344085,68082.0,68075.0,3.007e-05]
[1772862196487,0.02033323,68081.0,68075.0,3.007e-05]
[1772862196661,0.02033323,68081.0,68075.0,0.00023007]
[1772862199444,0.073443,68080.0,68075.0,3.007e-05]
[1772862199642,0.02181323,68079.0,68070.0,0.04844281]
[1772862200454,0.00148,68079.0,68071.0,0.01832906]
[1772862202615,0.07492413,68079.0,68073.0,0.01650072]
[1772862204007,0.07343761,68085.0,68073.0,0.01650072]
[1772862204205,0.00148,68084.0,68073.0,0.01650072]
[1772862204781,0.00148,68083.0,68075.0,0.01652538]
[1772862205193,0.00148,68082.0,68075.0,0.01652538]
[1772862205573,0.00148,68081.0,68075.0,0.01652538]
[1772862206134,0.00148,68080.0,68075.0,0.01652538]
[1772862206891,0.07343949,68084.0,68077.0,0.01654783]
[1772862207095,0.00148,68083.0,68077.0,0.01654783]
[1772862207534,0.07343949,68084.0,68077.0,0.01654783]
[1772862207714,0.00022001,68081.0,68077.0,0.01654783]
[1772862208117,0.00148,68080.0,68077.0,0.01654783]
[1772862209325,0.00148,68080.0,68077.0,0.08999388]
[1772862210169,0.00148,68080.0,68077.0,0.01654783]
[1772862210379,0.00148,68080.0,68075.0,0.07344803]
[1772862210786,0.00148,68080.0,68075.0,0.09014292]
[1772862216934,0.00148,68080.0,68075.0,0.09034292]
[1772862217563,0.00148,68080.0,68075.0,0.0002]
[1772862219097,0.00148,68080.0,68075.0,0.01738027]
[1772862221329,0.00148,68080.0,68075.0,0.0002]
[1772862221538,0.00148,68080.0,68070.0,0.0002]
[1772862222324,0.00148,68080.0,68070.0,0.01749081]
[1772862223673,0.07343369,68089.0,68073.0,0.017297]
[1772862223895,0.00148,68085.0,68073.0,0.017297]
[1772862225589,0.00148,68085.0,68074.0,0.07344948]
[1772862225792,0.00148,68085.0,68075.0,0.01730699]
[1772862225997,0.07513779,68085.0,68075.0,0.01730699]
[1772862226985,0.00170001,68085.0,68075.0,0.01730699]
[1772862227964,0.00170001,68085.0,68076.0,0.07344732]
[1772862232306,0.075138,68085.0,68075.0,0.09075431]
[1772862232509,0.02254183,68084.0,68075.0,0.07344749]
[1772862233253,0.02254183,68084.0,68074.0,0.07344948]
[1772862234704,0.02254183,68084.0,68075.0,0.0002]
[1772862234705,0.07343977,68083.0,68075.0,0.0002]
[1772862235953,0.02254183,68082.0,68070.0,0.07365379]
[1772862236092,0.07343955,68084.0,68070.0,0.07365379]
[1772862236321,0.07365978,68086.0,68070.0,0.07365379]
[1772862236322,0.00148,68083.0,68073.0,0.02204704]
[1772862236556,0.00148,68083.0,68074.0,0.01874742]
[1772862236751,0.00148,68083.0,68076.0,0.01874742]
[1772862236954,0.07365693,68086.0,68076.0,0.01874742]
[1772862237177,0.00148,68085.0,68076.0,0.01874742]
[1772862237668,0.00148,68084.0,68076.0,0.01874742]
[1772862239651,0.00148,68084.0,68077.0,0.07344624]
[1772862240898,0.00148,68084.0,68077.0,0.09762761]
[1772862241312,0.00022001,68086.0,68078.0,0.02418137]
[1772862241514,0.00148,68085.0,68078.0,0.02418137]
[1772862241714,0.00148,68085.0,68079.0,0.07344408]
[1772862241915,0.00148,68084.0,68079.0,0.07344408]
[1772862242122,0.00148,68084.0,68080.0,0.02417429]
[1772862242318,0.07365661,68086.0,68080.0,0.02417429]
[1772862242497,0.00148,68085.0,68080.0,0.02417429]
[1772862242898,0.00148,68084.0,68080.0,0.02417429]
[1772862243338,0.00022001,68085.0,68080.0,0.02417429]
[1772862243491,0.00148,68083.0,68080.0,0.02417429]
[1772862244189,0.00148,68082.0,68080.0,0.0734427]
[1772862244615,0.00022001,68085.0,68080.0,0.0734427]
[1772862244808,0.00148,68084.0,68080.0,0.0734427]
[1772862245209,0.00148,68083.0,68077.0,0.07344624]
[1772862245615,0.00148,68083.0,68076.0,0.07364715]
[1772862246177,0.00148,68082.0,68076.0,0.07364715]
[1772862247224,0.00148,68082.0,68072.0,0.07345141]
[1772862247552,0.00148,68082.0,68072.0,0.09544808]
[1772862247757,0.00148,68082.0,68073.0,0.02199667]
[1772862250301,0.00148,68082.0,68076.0,0.0002]
[1772862254801,0.07492085,68082.0,68076.0,0.0002]
[1772862258000,0.00148,68082.0,68076.0,0.0002]
[1772862268158,0.07492094,68082.0,68076.0,0.0002]
[1772862269761,0.07514095,68082.0,68076.0,0.0002]
[1772862295881,0.00170001,68082.0,68076.0,0.0002]
[1772862296052,0.00022001,68085.0,68076.0,0.0002]
[1772862296053,0.00148,68085.0,68077.0,0.0201609]
[1772862296262,0.00148,68085.0,68078.0,0.01997976]
[1772862296654,0.00148,68084.0,68078.0,0.01997976]
[1772862297040,0.00148,68083.0,68078.0,0.01997976]
[1772862297446,0.07365683,68086.0,68078.0,0.01997976]
[1772862297653,0.00148,68085.0,68078.0,0.01997976]
[1772862297911,0.00170001,68085.0,68079.0,0.07344408]
[1772862298060,0.00148,68084.0,68079.0,0.07344408]
[1772862298243,0.00148,68084.0,68080.0,0.00686466]
[1772862298449,0.00022001,68085.0,68080.0,0.00686466]
[1772862298648,0.00148,68084.0,68080.0,0.00686466]
[1772862299128,0.00148,68083.0,68081.0,0.00686466]
[1772862299545,0.00148,68082.0,68081.0,0.00686466]
[1772862300525,0.00022001,68085.0,68081.0,0.00686466]
[1772862300710,0.00148,68082.0,68081.0,0.00686466]
[1772862301108,0.00148,68088.0,68083.0,0.00694363]
[1772862301312,0.00148,68087.0,68083.0,0.00694363]
[1772862304758,0.00170001,68087.0,68084.0,0.08035337]
[1772862306127,0.00170001,68087.0,68084.0,0.07835337]
[1772862311357,0.00170001,68087.0,68081.0,0.00688823]
[1772862311937,0.00022001,68091.0,68081.0,0.00688823]
[1772862312145,0.00022001,68091.0,68077.0,0.07344624]
[1772862312146,0.00148,68090.0,68082.0,0.00687323]
[1772862312290,0.00148,68090.0,68084.0,0.00687323]
[1772862313212,0.00148,68090.0,68085.0,0.07343761]
[1772862313419,0.00148,68090.0,68086.0,0.00687323]
[1772862313732,0.00034421,68092.0,68086.0,0.00687323]
[1772862314038,0.00148,68091.0,68086.0,0.00687323]
[1772862315232,0.00148,68091.0,68088.0,0.00685818]
[1772862317895,0.00148,68091.0,68089.0,0.08026984]
[1772862318249,0.00170001,68091.0,68089.0,0.08026984]
[1772862319219,0.00170001,68091.0,68089.0,0.0734333]
[1772862320209,0.00170001,68091.0,68088.0,0.0734333]
[1772862322828,0.00170001,68091.0,68087.0,0.07343545]
[1772862323214,0.00022001,68091.0,68087.0,0.07343545]
[1772862323438,0.00170001,68091.0,68087.0,0.07343545]
[1772862324455,0.00170001,68091.0,68087.0,0.08022956]
[1772862328651,0.00148,68092.0,68087.0,0.07343545]
[1772862331352,0.00148,68092.0,68086.0,0.07343576]
[1772862331972,0.00148,68092.0,68087.0,0.0002]
[1772862332171,0.00170001,68092.0,68087.0,0.0002]
[1772862332401,0.00022001,68092.0,68087.0,0.0002]
[1772862332588,0.00170001,68092.0,68087.0,0.0002]
[1772862333270,0.00170001,68092.0,68087.0,0.00693334]
[1772862336617,0.00170001,68092.0,68087.0,0.0002]
[1772862337389,0.01881273,68091.0,68078.0,0.22002673]
[1772862337690,0.01881273,68089.0,68075.0,0.07357211]
[1772862338665,0.01881273,68087.0,68075.0,0.0001242]
[1772862338866,0.02029273,68086.0,68075.0,0.0001242]
[1772862339972,0.02029273,68086.0,68075.0,0.0003242]
[1772862341439,0.07343761,68085.0,68075.0,0.07377156]
[1772862341638,0.00148,68084.0,68075.0,0.08043157]
[1772862342377,0.07343761,68085.0,68075.0,0.08043157]
[1772862342586,0.00148,68083.0,68075.0,0.08043157]
[1772862342866,0.07343761,68085.0,68075.0,0.08043157]
[1772862343066,0.00148,68084.0,68075.0,0.08043157]
[1772862343415,0.07343437,68090.0,68075.0,0.08043157]
[1772862343613,0.00148,68089.0,68075.0,0.08043157]
[1772862344017,0.00148,68088.0,68075.0,0.08043157]
[1772862344442,0.07343437,68090.0,68075.0,0.08043157]
[1772862344644,0.00148,68087.0,68075.0,0.08043157]
[1772862345043,0.00148,68086.0,68075.0,0.08043157]
[1772862345292,0.00148,68086.0,68076.0,0.00664459]
[1772862345496,0.07343761,68085.0,68077.0,0.07344624]
[1772862345667,0.02029273,68084.0,68075.0,0.07377241]
[1772862347061,0.02029273,68084.0,68076.0,0.0002]
[1772862349287,0.07343977,68083.0,68076.0,0.0002]
[1772862356792,0.07491934,68084.0,68076.0,0.0067521]
[1772862357012,0.07343934,68084.0,68076.0,0.0067521]
[1772862357174,0.00148,68083.0,68076.0,0.0067521]
[1772862357710,0.00148,68082.0,68076.0,0.0067521]
[1772862358041,0.00148,68081.0,68076.0,0.0067521]
[1772862358474,0.07343934,68084.0,68076.0,0.0067521]
[1772862358689,0.00148,68080.0,68076.0,0.0067521]
[1772862358886,0.07343727,68086.0,68076.0,0.0067521]
[1772862359086,0.00148,68085.0,68077.0,0.07998294]
[1772862359286,0.00148,68084.0,68077.0,0.07998294]
[1772862359590,0.00148,68083.0,68077.0,0.07998294]
[1772862359945,0.07343114,68091.0,68077.0,0.07998294]
[1772862360167,0.00148,68090.0,68077.0,0.07998294]
[1772862360442,0.00022001,68084.0,68077.0,0.07998294]
[1772862360645,0.00022001,68084.0,68078.0,0.00652291]
[1772862360854,0.00148,68084.0,68080.0,0.01896971]
[1772862361060,0.00148,68084.0,68083.0,0.00652291]
[1772862362100,0.07343396,68089.0,68083.0,0.00652291]
[1772862362300,0.00148,68084.0,68083.0,0.00652291]
[1772862362488,0.07343396,68089.0,68083.0,0.00652291]
[1772862362684,0.00148,68084.0,68083.0,0.00652291]
[1772862363709,0.00148,68084.0,68081.0,0.07344154]
[1772862364036,0.00148,68084.0,68081.0,0.07994184]
[1772862367820,0.00170001,68084.0,68081.0,0.07994184]
[1772862370021,0.00170001,68084.0,68080.0,0.073443]
[1772862370223,0.00170001,68084.0,68080.0,0.07990103]
[1772862370416,0.00170001,68084.0,68081.0,0.00645803]
[1772862374329,0.00170001,68084.0,68081.0,0.08009956]
[1772862375757,0.00170001,68084.0,68082.0,0.00654021]
[1772862376377,0.00170001,68084.0,68081.0,0.0002]
[1772862376587,0.00170001,68084.0,68082.0,0.00654021]
[1772862378892,0.00022001,68084.0,68082.0,0.07998099]
[1772862379122,0.00170001,68084.0,68082.0,0.07998099]
[1772862382157,0.00148,68090.0,68082.0,0.01857836]
[1772862382349,0.00022001,68093.0,68081.0,0.0002]
[1772862382350,0.00022001,68093.0,68085.0,0.00649222]
[1772862382505,0.00148,68091.0,68085.0,0.00649222]
[1772862382835,0.00022001,68091.0,68085.0,0.00649222]
[1772862382977,0.00170001,68091.0,68085.0,0.00649222]
[1772862384862,0.00170001,68091.0,68086.0,0.07343653]
[1772862385005,0.00170001,68091.0,68087.0,0.00647627]
[1772862385434,0.00148,68091.0,68087.0,0.00647627]
[1772862387058,0.00148,68091.0,68088.0,0.07343437]
[1772862387262,0.00148,68091.0,68089.0,0.00647193]
[1772862387654,0.00022001,68096.0,68089.0,0.00647193]
[1772862387913,0.073427,68095.0,68089.0,0.00647193]
[1772862388113,0.00170001,68096.0,68089.0,0.00647193]
[1772862388305,0.07512581,68096.0,68089.0,0.00647193]
[1772862388516,0.00148,68093.0,68089.0,0.00647193]
[1772862389272,0.00022001,68091.0,68090.0,0.07343222]
[1772862389913,0.00022001,68091.0,68090.0,0.05343222]
[1772862391011,0.00022001,68096.0,68091.0,0.00644825]
[1772862391182,0.00148,68093.0,68091.0,0.00644825]
[1772862391339,0.00148,68093.0,68092.0,0.07343006]
[1772862391549,0.00148,68093.0,68092.0,0.07987057]
[1772862392884,0.00148,68095.0,68092.0,0.07343006]
[1772862393066,0.00148,68095.0,68093.0,0.00644051]
[1772862396349,0.00148,68095.0,68093.0,0.00664051]
[1772862396513,0.00170001,68095.0,68093.0,0.00664051]
[1772862398683,0.00170001,68095.0,68093.0,0.07362805]
[1772862398858,0.00170001,68095.0,68094.0,0.00643131]
[1772862400168,0.0004,68100.0,68094.0,0.00643131]
[1772862400169,0.0004,68100.0,68095.0,0.00641626]